[Event "Titled Tuesday Blitz August 1 Early 2023"]
[White "Lohani, Sujana"]
[Black "Silva Lucena, Cristian"]
[WhiteFideId "12311987"]
[BlackFideId "2232588"]
[WhiteElo "1932"]
[BlackElo "2409"]
[Result "1-0"]
[Round "2"]
[TimeControl "180+1"]
[Date "2023.08.01"]
[WhiteClock "0:01:31"]
[BlackClock "0:01:24"]
[Board "262"]

1. d4 {[%clk 0:03:00]}  Nf6 {[%clk 0:02:54]} 2. Nf3 {[%clk 0:03:01]}  g6 {[%clk 0:02:53]} 3. g3 {[%clk 0:03:00]}  Bg7 {[%clk 0:02:54]} 4. Bg2 {[%clk 0:03:01]}  O-O {[%clk 0:02:54]} 5. O-O {[%clk 0:03:02]}  d6 {[%clk 0:02:55]} 6. c3 {[%clk 0:02:58]}  a5 {[%clk 0:02:48]} 7. Nbd2 {[%clk 0:02:58]}  a4 {[%clk 0:02:48]} 8. e4 {[%clk 0:02:58]}  a3 {[%clk 0:02:48]} 9. b3 {[%clk 0:02:58]}  c5 {[%clk 0:02:48]} 10. e5 {[%clk 0:02:54]}  Nfd7 {[%clk 0:02:47]} 11. Re1 {[%clk 0:02:51]}  dxe5 {[%clk 0:02:45]} 12. dxe5 {[%clk 0:02:50]}  Nc6 {[%clk 0:02:42]} 13. Qc2 {[%clk 0:02:43]}  Ndxe5 {[%clk 0:02:37]} 14. Nxe5 {[%clk 0:02:36]}  Nxe5 {[%clk 0:02:38]} 15. Ne4 {[%clk 0:02:26]}  Qd3 {[%clk 0:02:31]} 16. Qxd3 {[%clk 0:02:23]}  Nxd3 {[%clk 0:02:32]} 17. Rd1 {[%clk 0:02:20]}  Nb2 {[%clk 0:02:24]} 18. Rd2 {[%clk 0:02:12]}  f5 {[%clk 0:02:21]} 19. Nxc5 {[%clk 0:02:01]}  Bxc3 {[%clk 0:02:20]} 20. Re2 {[%clk 0:01:56]}  Rd8 {[%clk 0:02:10]} 21. Bg5 {[%clk 0:01:44]}  Nd3 {[%clk 0:01:47]} 22. Rd1 {[%clk 0:01:37]}  Nxc5 {[%clk 0:01:24]} 23. Rxd8+ {[%clk 0:01:35]}  Kg7 {[%clk 0:01:24]} 24. Rxe7# {[%clk 0:01:31]} 1-0


[Site "https://www.chess.com"]

[Event "Titled Tuesday Blitz August 1 Early 2023"]
[White "Djordjevic, Vuk"]
[Black "Carlsen, Magnus"]
[WhiteFideId "902098"]
[BlackFideId "1503014"]
[WhiteElo "2741"]
[BlackElo "3245"]
[Result "0-1"]
[Round "3"]
[TimeControl "180+1"]
[Date "2023.08.01"]
[WhiteClock "0:00:02"]
[BlackClock "0:00:38"]
[Board "1"]

1. d4 {[%clk 0:03:00]}  Nc6 {[%clk 0:02:59]} 2. Nf3 {[%clk 0:02:59]}  Nf6 {[%clk 0:02:59]} 3. c4 {[%clk 0:02:55]}  e5 {[%clk 0:02:58]} 4. dxe5 {[%clk 0:02:38]}  Ne4 {[%clk 0:02:56]} 5. e3 {[%clk 0:02:31]}  Bb4+ {[%clk 0:02:48]} 6. Nbd2 {[%clk 0:02:31]}  Qe7 {[%clk 0:02:49]} 7. Bd3 {[%clk 0:02:26]}  Nxd2 {[%clk 0:02:35]} 8. Bxd2 {[%clk 0:02:19]}  Nxe5 {[%clk 0:02:35]} 9. Nxe5 {[%clk 0:02:17]}  Bxd2+ {[%clk 0:02:35]} 10. Qxd2 {[%clk 0:02:17]}  Qxe5 {[%clk 0:02:36]} 11. O-O {[%clk 0:02:16]}  b6 {[%clk 0:02:36]} 12. f4 {[%clk 0:01:51]}  Qe7 {[%clk 0:02:36]} 13. e4 {[%clk 0:01:51]}  Bb7 {[%clk 0:02:36]} 14. Rae1 {[%clk 0:01:51]}  O-O-O {[%clk 0:02:32]} 15. Qc3 {[%clk 0:01:48]}  f6 {[%clk 0:02:26]} 16. b4 {[%clk 0:01:43]}  Rhe8 {[%clk 0:02:23]} 17. c5 {[%clk 0:01:39]}  Kb8 {[%clk 0:02:23]} 18. a4 {[%clk 0:01:35]}  g5 {[%clk 0:02:19]} 19. fxg5 {[%clk 0:01:19]}  fxg5 {[%clk 0:02:19]} 20. e5 {[%clk 0:01:19]}  Qe6 {[%clk 0:02:15]} 21. a5 {[%clk 0:01:02]}  bxc5 {[%clk 0:02:14]} 22. bxc5 {[%clk 0:00:59]}  Ka8 {[%clk 0:02:11]} 23. a6 {[%clk 0:00:51]}  Bc6 {[%clk 0:02:10]} 24. Bxh7 {[%clk 0:00:45]}  Rb8 {[%clk 0:02:05]} 25. Rf2 {[%clk 0:00:37]}  Rf8 {[%clk 0:01:54]} 26. Rxf8 {[%clk 0:00:25]}  Rxf8 {[%clk 0:01:54]} 27. h3 {[%clk 0:00:25]}  Qa2 {[%clk 0:01:47]} 28. Be4 {[%clk 0:00:20]}  Bxe4 {[%clk 0:01:46]} 29. Rxe4 {[%clk 0:00:21]}  Qxa6 {[%clk 0:01:46]} 30. e6 {[%clk 0:00:13]}  dxe6 {[%clk 0:01:42]} 31. c6 {[%clk 0:00:10]}  Qa2 {[%clk 0:01:25]} 32. Kh2 {[%clk 0:00:06]}  Qd5 {[%clk 0:01:23]} 33. Re5 {[%clk 0:00:05]}  Qd6 {[%clk 0:01:22]} 34. Kg1 {[%clk 0:00:05]}  Rb8 {[%clk 0:01:18]} 35. Re1 {[%clk 0:00:05]}  a6 {[%clk 0:01:15]} 36. Ra1 {[%clk 0:00:05]}  Rb6 {[%clk 0:01:14]} 37. Qe3 {[%clk 0:00:04]}  Rxc6 {[%clk 0:01:12]} 38. Ra5 {[%clk 0:00:02]}  g4 {[%clk 0:01:02]} 39. hxg4 {[%clk 0:00:03]}  Qd1+ {[%clk 0:01:02]} 40. Kf2 {[%clk 0:00:03]}  Qxg4 {[%clk 0:01:00]} 41. Ra2 {[%clk 0:00:01]}  Kb7 {[%clk 0:00:56]} 42. Rd2 {[%clk 0:00:02]}  Rb6 {[%clk 0:00:55]} 43. Rc2 {[%clk 0:00:02]}  Qf5+ {[%clk 0:00:54]} 44. Qf3+ {[%clk 0:00:03]}  Rc6 {[%clk 0:00:43]} 45. Rb2+ {[%clk 0:00:02]}  Ka7 {[%clk 0:00:42]} 46. Kg3 {[%clk 0:00:01]}  Qe5+ {[%clk 0:00:41]} 47. Kh3 {[%clk 0:00:01]}  Rc3 {[%clk 0:00:38]} 48. Rb7+ {[%clk 0:00:01]}  Ka8 {[%clk 0:00:39]} 49. Rb3+ {[%clk 0:00:02]}  Rxf3+ {[%clk 0:00:38]} 50. Rxf3 {[%clk 0:00:02]} 0-1


[Site "https://www.chess.com"]

[Event "Titled Tuesday Blitz August 1 Early 2023"]
[White "Preotu, Razvan"]
[Black "Sarana, Alexey"]
[WhiteFideId "2613280"]
[BlackFideId "24133795"]
[WhiteElo "2734"]
[BlackElo "3103"]
[Result "0-1"]
[Round "3"]
[TimeControl "180+1"]
[Date "2023.08.01"]
[WhiteClock "0:00:04"]
[BlackClock "0:00:16"]
[Board "3"]

1. e4 {[%clk 0:03:00]}  c5 {[%clk 0:02:58]} 2. Nf3 {[%clk 0:03:01]}  d6 {[%clk 0:02:58]} 3. d4 {[%clk 0:03:01]}  cxd4 {[%clk 0:02:59]} 4. Nxd4 {[%clk 0:03:02]}  Nf6 {[%clk 0:03:00]} 5. Nc3 {[%clk 0:03:02]}  a6 {[%clk 0:03:00]} 6. Be3 {[%clk 0:03:03]}  e5 {[%clk 0:03:00]} 7. Nb3 {[%clk 0:03:03]}  Be6 {[%clk 0:02:59]} 8. h3 {[%clk 0:03:02]}  Nbd7 {[%clk 0:02:55]} 9. Qf3 {[%clk 0:02:59]}  Rc8 {[%clk 0:02:53]} 10. O-O-O {[%clk 0:02:38]}  Rxc3 {[%clk 0:02:53]} 11. bxc3 {[%clk 0:02:39]}  Qc7 {[%clk 0:02:51]} 12. Kb1 {[%clk 0:02:28]}  Be7 {[%clk 0:02:45]} 13. g4 {[%clk 0:02:28]}  h6 {[%clk 0:02:45]} 14. Rg1 {[%clk 0:02:24]}  Qxc3 {[%clk 0:02:21]} 15. Rg3 {[%clk 0:02:07]}  Qc6 {[%clk 0:02:18]} 16. Bg2 {[%clk 0:02:02]}  Nb6 {[%clk 0:02:15]} 17. Bxb6 {[%clk 0:02:01]}  Qxb6 {[%clk 0:02:15]} 18. h4 {[%clk 0:01:54]}  a5 {[%clk 0:01:59]} 19. g5 {[%clk 0:01:55]}  hxg5 {[%clk 0:01:59]} 20. hxg5 {[%clk 0:01:55]}  Nh5 {[%clk 0:01:59]} 21. Rh1 {[%clk 0:01:56]}  g6 {[%clk 0:01:57]} 22. Qe3 {[%clk 0:01:55]}  Qxe3 {[%clk 0:01:32]} 23. Rxe3 {[%clk 0:01:56]}  a4 {[%clk 0:01:31]} 24. Na5 {[%clk 0:01:54]}  Bxg5 {[%clk 0:01:31]} 25. Rd3 {[%clk 0:01:53]}  Ke7 {[%clk 0:01:29]} 26. Bf3 {[%clk 0:01:47]}  Ra8 {[%clk 0:01:25]} 27. Bxh5 {[%clk 0:01:43]}  gxh5 {[%clk 0:01:24]} 28. Rxh5 {[%clk 0:01:44]}  Bf4 {[%clk 0:01:22]} 29. Nb3 {[%clk 0:01:22]}  axb3 {[%clk 0:01:21]} 30. axb3 {[%clk 0:01:23]}  Rg8 {[%clk 0:01:20]} 31. f3 {[%clk 0:01:21]}  Rg1+ {[%clk 0:01:19]} 32. Kb2 {[%clk 0:01:21]}  Bc1+ {[%clk 0:01:16]} 33. Ka2 {[%clk 0:01:21]}  Rg2 {[%clk 0:01:16]} 34. Kb1 {[%clk 0:01:21]}  Ba3 {[%clk 0:01:16]} 35. Rh8 {[%clk 0:01:21]}  Kd7 {[%clk 0:01:07]} 36. Ra8 {[%clk 0:01:20]}  Bc5 {[%clk 0:01:07]} 37. Rb8 {[%clk 0:01:20]}  Kc7 {[%clk 0:01:07]} 38. Re8 {[%clk 0:01:19]}  Bd4 {[%clk 0:01:02]} 39. c3 {[%clk 0:01:17]}  Bb6 {[%clk 0:00:57]} 40. c4 {[%clk 0:00:47]}  Rf2 {[%clk 0:00:46]} 41. Kc1 {[%clk 0:00:44]}  Bc5 {[%clk 0:00:42]} 42. Kd1 {[%clk 0:00:45]}  Bb4 {[%clk 0:00:37]} 43. Ra8 {[%clk 0:00:41]}  Rf1+ {[%clk 0:00:36]} 44. Ke2 {[%clk 0:00:40]}  Rb1 {[%clk 0:00:36]} 45. Ra4 {[%clk 0:00:35]}  Rb2+ {[%clk 0:00:33]} 46. Kd1 {[%clk 0:00:34]}  Bc5 {[%clk 0:00:34]} 47. Kc1 {[%clk 0:00:34]}  Rf2 {[%clk 0:00:34]} 48. Ra8 {[%clk 0:00:32]}  f5 {[%clk 0:00:32]} 49. Re8 {[%clk 0:00:31]}  Bd7 {[%clk 0:00:32]} 50. Re7 {[%clk 0:00:30]}  f4 {[%clk 0:00:32]} 51. Kd1 {[%clk 0:00:25]}  b6 {[%clk 0:00:28]} 52. Ke1 {[%clk 0:00:23]}  Rb2 {[%clk 0:00:27]} 53. Kd1 {[%clk 0:00:20]}  Kc6 {[%clk 0:00:26]} 54. Kc1 {[%clk 0:00:16]}  Rf2 {[%clk 0:00:26]} 55. Kb1 {[%clk 0:00:15]}  Bh3 {[%clk 0:00:18]} 56. Rh7 {[%clk 0:00:07]}  Bf1 {[%clk 0:00:18]} 57. Rc3 {[%clk 0:00:05]}  Be2 {[%clk 0:00:18]} 58. Rh3 {[%clk 0:00:04]}  Bd4 {[%clk 0:00:16]} 59. Rc1 {[%clk 0:00:04]}  Bxf3 {[%clk 0:00:16]} 0-1


[Site "https://www.chess.com"]

[Event "Titled Tuesday Blitz August 1 Early 2023"]
[White "Skvortsov, Andrei"]
[Black "Bortnyk, Olexandr"]
[WhiteFideId "24108600"]
[BlackFideId "14120828"]
[WhiteElo "2724"]
[BlackElo "3077"]
[Result "0-1"]
[Round "3"]
[TimeControl "180+1"]
[Date "2023.08.01"]
[WhiteClock "0:00:18"]
[BlackClock "0:00:16"]
[Board "5"]

1. Nc3 {[%clk 0:03:00]}  Nf6 {[%clk 0:02:57]} 2. e4 {[%clk 0:02:59]}  d5 {[%clk 0:02:56]} 3. e5 {[%clk 0:02:59]}  Nfd7 {[%clk 0:02:56]} 4. Nxd5 {[%clk 0:02:59]}  Nxe5 {[%clk 0:02:56]} 5. Ne3 {[%clk 0:03:00]}  c5 {[%clk 0:02:56]} 6. f3 {[%clk 0:02:59]}  Nbc6 {[%clk 0:02:55]} 7. Nc4 {[%clk 0:02:54]}  g6 {[%clk 0:02:49]} 8. Nxe5 {[%clk 0:02:53]}  Nxe5 {[%clk 0:02:49]} 9. Bb5+ {[%clk 0:02:53]}  Bd7 {[%clk 0:02:49]} 10. Bxd7+ {[%clk 0:02:43]}  Qxd7 {[%clk 0:02:50]} 11. Ne2 {[%clk 0:02:37]}  Bg7 {[%clk 0:02:49]} 12. d3 {[%clk 0:02:36]}  O-O {[%clk 0:02:49]} 13. O-O {[%clk 0:02:33]}  Rfd8 {[%clk 0:02:49]} 14. Be3 {[%clk 0:02:31]}  Rac8 {[%clk 0:02:45]} 15. Nc3 {[%clk 0:02:30]}  c4 {[%clk 0:02:44]} 16. d4 {[%clk 0:02:23]}  Nc6 {[%clk 0:02:44]} 17. Ne2 {[%clk 0:02:23]}  Nxd4 {[%clk 0:02:36]} 18. c3 {[%clk 0:02:10]}  Nf5 {[%clk 0:02:22]} 19. Bxa7 {[%clk 0:02:02]}  Qc7 {[%clk 0:02:09]} 20. Qa4 {[%clk 0:01:56]}  Ra8 {[%clk 0:02:04]} 21. Rad1 {[%clk 0:01:52]}  Rxd1 {[%clk 0:01:48]} 22. Rxd1 {[%clk 0:01:50]}  b5 {[%clk 0:01:46]} 23. Qxb5 {[%clk 0:01:42]}  Qxa7+ {[%clk 0:01:46]} 24. Kh1 {[%clk 0:01:41]}  Qxa2 {[%clk 0:01:33]} 25. Nf4 {[%clk 0:01:29]}  e6 {[%clk 0:01:21]} 26. g4 {[%clk 0:01:23]}  Nh4 {[%clk 0:00:50]} 27. Qb7 {[%clk 0:01:21]}  Bf6 {[%clk 0:00:46]} 28. h3 {[%clk 0:01:18]}  Qa7 {[%clk 0:00:43]} 29. Qe4 {[%clk 0:01:14]}  Rb8 {[%clk 0:00:41]} 30. Qxc4 {[%clk 0:01:01]}  Qf2 {[%clk 0:00:38]} 31. Rf1 {[%clk 0:00:52]}  Qg3 {[%clk 0:00:34]} 32. Qc7 {[%clk 0:00:33]}  Rxb2 {[%clk 0:00:19]} 33. Qc8+ {[%clk 0:00:18]}  Kg7 {[%clk 0:00:18]} 34. Nxe6+ {[%clk 0:00:18]}  fxe6 {[%clk 0:00:18]} 35. Qd7+ {[%clk 0:00:19]}  Kh6 {[%clk 0:00:16]} 36. g5+ {[%clk 0:00:18]}  Bxg5 {[%clk 0:00:16]} 0-1


[Site "https://www.chess.com"]

[Event "Titled Tuesday Blitz August 1 Early 2023"]
[White "Pranesh M"]
[Black "Zhao, Jun"]
[WhiteFideId "35028600"]
[BlackFideId "8602522"]
[WhiteElo "3070"]
[BlackElo "2720"]
[Result "1-0"]
[Round "3"]
[TimeControl "180+1"]
[Date "2023.08.01"]
[WhiteClock "0:01:16"]
[BlackClock "0:00:03"]
[Board "6"]

1. e4 {[%clk 0:03:00]}  e5 {[%clk 0:02:57]} 2. Nf3 {[%clk 0:03:00]}  Nf6 {[%clk 0:02:57]} 3. d4 {[%clk 0:02:59]}  Nxe4 {[%clk 0:02:55]} 4. Bd3 {[%clk 0:02:59]}  Nc6 {[%clk 0:02:53]} 5. Nxe5 {[%clk 0:02:59]}  Nxe5 {[%clk 0:02:52]} 6. dxe5 {[%clk 0:03:00]}  Nc5 {[%clk 0:02:52]} 7. Bc4 {[%clk 0:03:00]}  d6 {[%clk 0:02:52]} 8. Qf3 {[%clk 0:03:00]}  Ne6 {[%clk 0:02:49]} 9. exd6 {[%clk 0:02:51]}  Bxd6 {[%clk 0:02:47]} 10. Nc3 {[%clk 0:02:51]}  O-O {[%clk 0:02:34]} 11. Be3 {[%clk 0:02:51]}  Bd7 {[%clk 0:02:34]} 12. O-O-O {[%clk 0:02:49]}  Bc6 {[%clk 0:02:33]} 13. Bd5 {[%clk 0:02:50]}  Bxd5 {[%clk 0:02:31]} 14. Qxd5 {[%clk 0:02:50]}  Qc8 {[%clk 0:02:25]} 15. g3 {[%clk 0:02:44]}  Rd8 {[%clk 0:02:24]} 16. Qc4 {[%clk 0:02:19]}  c6 {[%clk 0:02:18]} 17. Ne4 {[%clk 0:02:16]}  Be7 {[%clk 0:02:16]} 18. Qc3 {[%clk 0:02:11]}  Rd5 {[%clk 0:02:08]} 19. Rd3 {[%clk 0:02:06]}  Rxd3 {[%clk 0:01:57]} 20. Qxd3 {[%clk 0:02:07]}  Qd8 {[%clk 0:01:57]} 21. Rd1 {[%clk 0:02:06]}  Qxd3 {[%clk 0:01:07]} 22. Rxd3 {[%clk 0:02:06]}  Kf8 {[%clk 0:01:05]} 23. Rd7 {[%clk 0:02:01]}  b6 {[%clk 0:01:05]} 24. f4 {[%clk 0:01:34]}  Ke8 {[%clk 0:00:58]} 25. Rb7 {[%clk 0:01:31]}  f5 {[%clk 0:00:56]} 26. Ng5 {[%clk 0:01:23]}  Bxg5 {[%clk 0:00:02]} 27. fxg5 {[%clk 0:01:24]}  c5 {[%clk 0:00:01]} 28. c4 {[%clk 0:01:20]}  Rd8 {[%clk 0:00:01]} 29. Rxa7 {[%clk 0:01:20]}  Rd3 {[%clk 0:00:01]} 30. Bd2 {[%clk 0:01:19]}  Rf3 {[%clk 0:00:01]} 31. Rb7 {[%clk 0:01:19]}  Rf1+ {[%clk 0:00:01]} 32. Kc2 {[%clk 0:01:18]}  Nd4+ {[%clk 0:00:02]} 33. Kd3 {[%clk 0:01:18]}  Rf3+ {[%clk 0:00:02]} 34. Be3 {[%clk 0:01:19]}  g6 {[%clk 0:00:02]} 35. Rxb6 {[%clk 0:01:19]}  f4 {[%clk 0:00:02]} 36. gxf4 {[%clk 0:01:16]}  Kd7 {[%clk 0:00:03]} 37. Ke4 {[%clk 0:01:16]}  Rh3 {[%clk 0:00:03]} 38. Bxd4 {[%clk 0:01:15]}  cxd4 {[%clk 0:00:03]} 39. Kxd4 {[%clk 0:01:16]}  Rxh2 {[%clk 0:00:03]} 40. a4 {[%clk 0:01:16]} 1-0


[Site "https://www.chess.com"]

[Event "Titled Tuesday Blitz August 1 Early 2023"]
[White "Fiorito, Joaquin"]
[Black "Aronian, Levon"]
[WhiteFideId "180173"]
[BlackFideId "13300474"]
[WhiteElo "2720"]
[BlackElo "3059"]
[Result "0-1"]
[Round "3"]
[TimeControl "180+1"]
[Date "2023.08.01"]
[WhiteClock "0:00:15"]
[BlackClock "0:01:57"]
[Board "7"]

1. d4 {[%clk 0:03:00]}  Nf6 {[%clk 0:02:59]} 2. c4 {[%clk 0:03:01]}  g6 {[%clk 0:02:59]} 3. Nc3 {[%clk 0:03:01]}  Bg7 {[%clk 0:03:00]} 4. e4 {[%clk 0:03:01]}  O-O {[%clk 0:03:01]} 5. h3 {[%clk 0:03:02]}  d6 {[%clk 0:03:01]} 6. Be3 {[%clk 0:03:02]}  Nc6 {[%clk 0:03:01]} 7. Nge2 {[%clk 0:03:01]}  e5 {[%clk 0:03:00]} 8. d5 {[%clk 0:02:59]}  Ne7 {[%clk 0:03:00]} 9. g4 {[%clk 0:02:59]}  h5 {[%clk 0:03:00]} 10. f3 {[%clk 0:02:58]}  c6 {[%clk 0:03:00]} 11. Qd2 {[%clk 0:02:57]}  b5 {[%clk 0:02:56]} 12. g5 {[%clk 0:02:36]}  Ne8 {[%clk 0:02:52]} 13. cxb5 {[%clk 0:02:25]}  cxd5 {[%clk 0:02:46]} 14. Nxd5 {[%clk 0:02:23]}  Nxd5 {[%clk 0:02:46]} 15. Qxd5 {[%clk 0:02:24]}  Nc7 {[%clk 0:02:46]} 16. Qc6 {[%clk 0:02:07]}  Bd7 {[%clk 0:02:41]} 17. Qxd6 {[%clk 0:02:04]}  Nxb5 {[%clk 0:02:41]} 18. Qd2 {[%clk 0:02:04]}  Qe7 {[%clk 0:02:40]} 19. a4 {[%clk 0:01:38]}  Nd4 {[%clk 0:02:38]} 20. Nxd4 {[%clk 0:01:36]}  exd4 {[%clk 0:02:37]} 21. Bxd4 {[%clk 0:01:37]}  Bxd4 {[%clk 0:02:31]} 22. Qxd4 {[%clk 0:01:38]}  Qxg5 {[%clk 0:02:27]} 23. Rg1 {[%clk 0:01:24]}  Qh4+ {[%clk 0:02:25]} 24. Qf2 {[%clk 0:01:24]}  Qf6 {[%clk 0:02:26]} 25. Bc4 {[%clk 0:01:22]}  Rac8 {[%clk 0:02:19]} 26. Bd5 {[%clk 0:01:18]}  Bxh3 {[%clk 0:02:19]} 27. Rd1 {[%clk 0:01:07]}  Rfd8 {[%clk 0:02:13]} 28. Qg3 {[%clk 0:00:59]}  Be6 {[%clk 0:02:11]} 29. Rd2 {[%clk 0:00:20]}  Bxd5 {[%clk 0:01:58]} 30. exd5 {[%clk 0:00:21]}  Rc1+ {[%clk 0:01:57]} 31. Kf2 {[%clk 0:00:15]}  Qb6+ {[%clk 0:01:57]} 0-1


[Site "https://www.chess.com"]

[Event "Titled Tuesday Blitz August 1 Early 2023"]
[White "Ilkhomi, Jaloliddin"]
[Black "Xu, Xiangyu"]
[WhiteFideId "14700948"]
[BlackFideId "8608288"]
[WhiteElo "2712"]
[BlackElo "3007"]
[Result "1/2-1/2"]
[Round "3"]
[TimeControl "180+1"]
[Date "2023.08.01"]
[WhiteClock "0:02:25"]
[BlackClock "0:01:25"]
[Board "11"]

1. Nf3 {[%clk 0:03:00]}  c5 {[%clk 0:02:57]} 2. c3 {[%clk 0:03:00]}  e6 {[%clk 0:02:51]} 3. d4 {[%clk 0:03:00]}  Nf6 {[%clk 0:02:51]} 4. Bf4 {[%clk 0:03:00]}  b6 {[%clk 0:02:50]} 5. Nbd2 {[%clk 0:03:00]}  d5 {[%clk 0:02:47]} 6. e3 {[%clk 0:03:00]}  Be7 {[%clk 0:02:46]} 7. Ne5 {[%clk 0:02:59]}  O-O {[%clk 0:02:43]} 8. Bd3 {[%clk 0:02:59]}  Bb7 {[%clk 0:02:41]} 9. Qf3 {[%clk 0:02:58]}  Nbd7 {[%clk 0:02:40]} 10. h4 {[%clk 0:02:58]}  Nxe5 {[%clk 0:02:32]} 11. dxe5 {[%clk 0:02:59]}  Nd7 {[%clk 0:02:31]} 12. Bxh7+ {[%clk 0:02:59]}  Kxh7 {[%clk 0:02:29]} 13. Qh5+ {[%clk 0:03:00]}  Kg8 {[%clk 0:02:29]} 14. Nf3 {[%clk 0:03:01]}  f6 {[%clk 0:01:58]} 15. Ng5 {[%clk 0:03:01]}  fxg5 {[%clk 0:01:57]} 16. hxg5 {[%clk 0:03:02]}  Rf5 {[%clk 0:01:54]} 17. Qh7+ {[%clk 0:03:01]}  Kf7 {[%clk 0:01:34]} 18. Qh5+ {[%clk 0:02:47]}  Kf8 {[%clk 0:01:32]} 19. Qh8+ {[%clk 0:02:46]}  Kf7 {[%clk 0:01:32]} 20. Qh5+ {[%clk 0:02:46]}  Kf8 {[%clk 0:01:25]} 21. Qh8+ {[%clk 0:02:26]}  Kf7 {[%clk 0:01:25]} 22. Qh5+ {[%clk 0:02:25]} 1/2-1/2


[Site "https://www.chess.com"]

[Event "Titled Tuesday Blitz August 1 Early 2023"]
[White "Bok, Benjamin"]
[Black "Zeynalli, Rashad"]
[WhiteFideId "1017063"]
[BlackFideId "13403320"]
[WhiteElo "2956"]
[BlackElo "2700"]
[Result "1-0"]
[Round "3"]
[TimeControl "180+1"]
[Date "2023.08.01"]
[WhiteClock "0:00:55"]
[BlackClock "0:01:38"]
[Board "15"]

1. d4 {[%clk 0:03:00]}  d5 {[%clk 0:02:59]} 2. c4 {[%clk 0:03:00]}  e6 {[%clk 0:03:00]} 3. Nc3 {[%clk 0:03:01]}  Be7 {[%clk 0:03:00]} 4. cxd5 {[%clk 0:02:54]}  exd5 {[%clk 0:03:01]} 5. Bf4 {[%clk 0:02:54]}  c6 {[%clk 0:03:01]} 6. e3 {[%clk 0:02:54]}  Bf5 {[%clk 0:03:00]} 7. g4 {[%clk 0:02:47]}  Be6 {[%clk 0:03:00]} 8. Qb3 {[%clk 0:02:46]}  Qb6 {[%clk 0:03:00]} 9. h3 {[%clk 0:02:43]}  Nd7 {[%clk 0:02:57]} 10. Nf3 {[%clk 0:02:41]}  h6 {[%clk 0:02:44]} 11. Qc2 {[%clk 0:02:31]}  Ngf6 {[%clk 0:02:37]} 12. Bd3 {[%clk 0:02:30]}  c5 {[%clk 0:02:31]} 13. dxc5 {[%clk 0:02:26]}  Nxc5 {[%clk 0:02:30]} 14. Bb5+ {[%clk 0:02:21]}  Nfd7 {[%clk 0:02:27]} 15. O-O-O {[%clk 0:02:16]}  Rc8 {[%clk 0:02:25]} 16. Kb1 {[%clk 0:02:14]}  a6 {[%clk 0:02:19]} 17. Bxd7+ {[%clk 0:01:37]}  Nxd7 {[%clk 0:02:19]} 18. Nd4 {[%clk 0:01:23]}  Bb4 {[%clk 0:02:18]} 19. Nxd5 {[%clk 0:01:11]}  Rxc2 {[%clk 0:02:06]} 20. Nxb6 {[%clk 0:01:11]}  Rxf2 {[%clk 0:02:06]} 21. Nxe6 {[%clk 0:01:10]}  Nxb6 {[%clk 0:02:01]} 22. Rd8+ {[%clk 0:01:05]}  Ke7 {[%clk 0:02:01]} 23. Rxh8 {[%clk 0:01:06]}  fxe6 {[%clk 0:01:59]} 24. Rb8 {[%clk 0:01:04]}  Nd5 {[%clk 0:01:53]} 25. Be5 {[%clk 0:00:58]}  Kd7 {[%clk 0:01:38]} 26. Rc1 {[%clk 0:00:55]} 1-0


[Site "https://www.chess.com"]